bitfinex/quotes_SOLUSD_20250819
["timestamp","ask_amount","ask_price","bid_price","bid_amount"]
[1755619598258,10.03,178.43,178.42,76.13704641]
[1755619598466,0.03,178.43,178.42,76.13704641]
[1755619598666,10.03,178.47,178.46,26.0]
[1755619598884,10.03,178.47,178.46,89.73264042]
[1755619599077,10.73,178.47,178.46,76.13704641]
[1755619599278,10.73,178.47,178.46,35.19704641]
[1755619599485,16.3331826,178.47,178.46,9.19704641]
[1755619599683,16.3331826,178.47,178.44,40.96]
[1755619599898,10.0,178.4,178.38,13.59559401]
[1755619600199,10.0,178.4,178.39,63.77264042]
[1755619600888,10.0,178.4,178.39,69.40357959]
[1755619602369,10.7,178.4,178.39,69.40357959]
[1755619603577,10.0,178.41,178.4,13.59559401]
[1755619603875,10.0,178.42,178.41,13.59559401]
[1755619604075,10.0,178.42,178.41,23.45264042]
[1755619604497,10.0,178.42,178.41,22.79264042]
[1755619604806,0.73,178.47,178.42,26.0]
[1755619604807,10.0,178.43,178.42,26.0]
[1755619605105,10.0,178.43,178.42,76.13704641]
[1755619605295,10.7,178.43,178.42,50.13704641]
[1755619605490,10.7,178.43,178.41,40.94]
[1755619605804,10.0,178.41,178.4,54.53559401]
[1755619606603,10.7,178.41,178.39,31.63093917]
[1755619606774,10.0,178.4,178.39,86.16653318]
[1755619606973,10.73,178.4,178.39,54.42357959]
[1755619607177,10.73,178.4,178.39,28.42357959]
[1755619607477,10.0,178.39,178.38,40.92]
[1755619607676,10.0,178.38,178.36,22.79264042]
[1755619607876,0.7,178.39,178.32,13.59559401]
[1755619607877,10.0,178.36,178.32,13.59559401]
[1755619608088,10.0,178.35,178.33,54.51559401]
[1755619608307,10.0,178.34,178.33,80.51559401]
[1755619609404,10.0,178.34,178.33,89.71264042]
[1755619611482,10.0,178.39,178.37,13.59559401]
[1755619611701,10.03,178.4,178.39,26.0]
[1755619611895,10.03,178.4,178.39,35.19704641]
[1755619612101,10.03,178.4,178.39,26.0]
[1755619612285,10.0,178.39,178.38,50.19704641]
[1755619612603,10.7,178.39,178.38,9.19704641]
[1755619612797,10.0,178.39,178.38,9.19704641]
[1755619613001,0.03,178.4,178.38,9.85704641]
[1755619613209,0.03,178.4,178.39,70.0783358]
[1755619613501,0.03,178.4,178.39,69.4183358]
[1755619614214,0.03,178.4,178.39,79.27538221]
[1755619615030,0.03,178.4,178.39,70.0783358]
[1755619615590,0.03,178.4,178.39,79.27538221]
[1755619617122,0.03,178.42,178.41,26.0]
[1755619617416,0.03,178.42,178.41,63.77264042]
[1755619617582,0.03,178.42,178.41,70.0377074]
[1755619617783,0.03,178.42,178.41,63.75264042]
[1755619618002,0.03,178.42,178.41,22.79264042]
[1755619618003,0.73,178.42,178.41,22.79264042]
[1755619618207,10.73,178.42,178.41,63.73264042]
[1755619618411,10.73,178.42,178.41,40.94]
[1755619620000,10.03,178.42,178.41,54.53559401]
[1755619620239,10.73,178.42,178.41,40.94]
[1755619620387,10.0,178.41,178.38,13.59559401]
[1755619620582,10.0,178.39,178.38,13.59559401]
[1755619620887,10.7,178.39,178.38,54.51559401]
[1755619621198,10.0,178.39,178.38,63.71264042]
[1755619621398,10.0,178.39,178.38,55.17559401]
[1755619621597,10.0,178.4,178.38,69.97865006]
[1755619621819,10.0,178.39,178.38,69.97865006]
[1755619621993,10.03,178.42,178.41,13.59559401]
[1755619622196,10.03,178.42,178.41,64.35264042]
[1755619622495,0.03,178.42,178.41,64.35264042]
[1755619623294,0.03,178.44,178.43,39.59559401]
[1755619623606,0.03,178.47,178.46,39.59559401]
[1755619623810,0.03,178.47,178.46,95.316137]
[1755619624032,0.03,178.47,178.46,95.996137]
[1755619624534,0.03,178.51,178.5,39.59559401]
[1755619624708,0.03,178.51,178.5,98.98968683]
[1755619625024,0.03,178.51,178.5,99.66968683]
[1755619625224,0.03,178.51,178.5,81.27559401]
[1755619625392,0.03,178.51,178.5,99.66968683]
[1755619625589,0.03,178.51,178.5,90.47264042]
[1755619625811,0.03,178.51,178.5,96.07488131]
[1755619626004,0.03,178.51,178.5,105.27192772]
[1755619626423,0.03,178.51,178.5,104.59192772]
[1755619626631,10.03,178.51,178.5,80.57559401]
[1755619626796,10.74,178.51,178.5,89.79264042]
[1755619627128,10.74,178.51,178.5,67.0]
[1755619627303,10.0,178.49,178.48,22.79264042]
[1755619627498,10.71,178.49,178.48,63.79264042]
[1755619627698,10.0,178.49,178.48,63.79264042]
[1755619627893,10.0,178.49,178.48,54.59559401]
[1755619628108,10.71,178.49,178.48,63.79264042]
[1755619628436,10.71,178.49,178.48,41.0]
[1755619628601,10.71,178.49,178.48,54.59559401]
[1755619628991,10.71,178.49,178.48,13.59559401]
[1755619629423,10.0,178.48,178.47,54.57559401]
[1755619629734,10.0,178.48,178.47,63.77264042]
[1755619630920,10.0,178.48,178.47,63.79264042]
[1755619632028,10.0,178.48,178.47,54.59559401]
[1755619632194,10.0,178.48,178.47,63.79264042]
[1755619633034,10.71,178.48,178.45,26.0]
[1755619633326,10.0,178.45,178.44,48.79264042]
[1755619633630,10.71,178.45,178.44,66.96]
[1755619633808,10.0,178.45,178.44,76.15704641]
[1755619634345,10.0,178.45,178.39,0.68]
[1755619634346,10.0,178.43,178.41,9.19704641]
[1755619634526,10.71,178.43,178.42,40.96]
[1755619634743,10.0,178.39,178.35,5.60665355]
[1755619635036,10.0,178.38,178.37,22.79264042]
[1755619635338,10.0,178.38,178.37,54.55559401]
[1755619635639,10.0,178.38,178.37,63.75264042]
[1755619635936,10.0,178.38,178.37,54.55559401]
[1755619636103,10.71,178.38,178.37,54.55559401]
[1755619636605,10.0,178.38,178.37,63.75264042]
[1755619636810,10.0,178.39,178.37,64.43264042]
[1755619637011,10.0,178.39,178.38,9.19704641]
[1755619638308,10.71,178.39,178.34,0.06]
[1755619638536,10.0,178.37,178.36,39.59559401]
[1755619638732,10.71,178.37,178.36,39.59559401]
[1755619638936,10.0,178.37,178.36,39.59559401]
[1755619639237,10.71,178.37,178.36,39.59559401]
[1755619639527,10.71,178.37,178.36,26.0]
[1755619640431,10.71,178.37,178.36,35.19704641]
[1755619640432,10.0,178.37,178.36,35.19704641]
[1755619640642,10.0,178.37,178.36,48.79264042]
[1755619641343,10.71,178.37,178.36,39.59559401]
[1755619642519,10.0,178.37,178.36,48.79264042]
[1755619642742,10.0,178.37,178.36,39.59559401]
[1755619642948,10.0,178.36,178.34,0.06]
[1755619643116,19.75859178,178.35,178.34,0.06]
[1755619643317,20.46859178,178.35,178.34,0.06]
[1755619644739,10.0,178.35,178.34,9.25704641]
[1755619644933,10.0,178.35,178.34,24.87277456]
[1755619645136,10.0,178.36,178.35,13.59559401]
[1755619645348,10.0,178.37,178.35,24.81277456]
[1755619645554,10.0,178.37,178.36,65.79277456]
[1755619645719,10.0,178.37,178.36,40.98]
[1755619645920,10.0,178.35,178.34,52.23718055]
[1755619646229,10.0,178.35,178.34,65.83277456]
[1755619646551,10.0,178.38,178.37,13.59559401]
[1755619646752,10.0,178.38,178.37,24.81277456]
[1755619647545,10.0,178.39,178.37,25.49277456]
[1755619647722,10.0,178.39,178.38,11.21718055]
[1755619648050,10.0,178.39,178.38,65.79277456]
[1755619648350,10.0,178.4,178.38,66.47277456]
[1755619648550,10.0,178.4,178.39,11.21718055]
[1755619648735,10.0,178.42,178.4,13.59559401]
[1755619648932,10.0,178.42,178.41,11.21718055]
[1755619649124,10.03,178.44,178.4,60.86095431]
[1755619649449,0.03,178.44,178.41,14.27559401]
[1755619649628,10.03,178.44,178.43,50.81277456]
[1755619649827,10.03,178.44,178.42,40.98]
[1755619649828,10.03,178.44,178.41,11.21718055]
[1755619650066,10.0,178.42,178.41,13.59559401]
[1755619650545,10.0,178.42,178.41,24.81277456]
[1755619650851,10.0,178.41,178.4,40.98]
[1755619651146,10.0,178.41,178.4,65.79277456]
[1755619651864,10.0,178.42,178.4,72.07815572]
[1755619652049,10.0,178.42,178.41,25.49277456]
[1755619652223,10.0,178.42,178.41,24.81277456]
[1755619652558,10.0,178.42,178.41,65.75277456]
[1755619653121,10.71,178.42,178.41,40.94]
[1755619653354,10.0,178.42,178.41,40.94]
[1755619654153,10.71,178.42,178.41,40.94]
[1755619654452,10.0,178.41,178.4,13.59559401]
[1755619654624,0.03,178.44,178.42,39.59559401]
[1755619654959,0.03,178.44,178.43,52.17718055]
[1755619655244,10.0,178.43,178.42,39.59559401]
[1755619655449,10.0,178.43,178.42,65.77277456]
[1755619656934,10.0,178.43,178.42,50.81277456]
[1755619657348,10.71,178.43,178.42,26.0]
[1755619657545,10.0,178.41,178.4,65.75277456]
[1755619657734,10.71,178.41,178.39,40.96]
[1755619657942,10.0,178.4,178.39,13.59559401]
[1755619658147,10.0,178.4,178.38,11.21718055]
[1755619658356,10.71,178.4,178.38,11.21718055]
[1755619658563,10.0,178.39,178.38,11.21718055]
[1755619659765,10.0,178.39,178.37,54.55559401]
[1755619659968,10.0,178.39,178.38,11.21718055]
[1755619660470,10.0,178.36,178.34,0.06]
[1755619660647,10.0,178.37,178.36,13.59559401]
[1755619660848,10.0,178.37,178.36,24.81277456]
[1755619661463,10.0,178.37,178.36,25.51277456]
[1755619661972,10.0,178.37,178.36,24.81277456]
[1755619662181,10.0,178.35,178.34,0.06]
[1755619662542,21.92718055,178.35,178.34,0.06]
[1755619663145,10.56154537,178.36,178.34,0.06]
[1755619663365,10.0,178.35,178.34,37.27718055]
[1755619663852,10.0,178.37,178.36,26.0]
[1755619664250,10.71,178.37,178.36,26.0]
[1755619665242,10.0,178.37,178.36,37.21718055]
[1755619665765,10.71,178.37,178.36,26.0]
[1755619666373,10.0,178.36,178.34,24.87277456]
[1755619666571,10.0,178.36,178.35,11.21718055]
[1755619667441,10.0,178.35,178.34,11.27718055]
[1755619668574,10.0,178.36,178.34,31.18004157]
[1755619668775,10.0,178.37,178.36,26.0]
[1755619669080,10.0,178.37,178.36,37.21718055]
[1755619670480,10.71,178.37,178.34,0.06]
[1755619670794,21.21718055,178.35,178.34,0.06]
[1755619671261,27.53413317,178.35,178.34,0.06]
[1755619672065,28.09567854,178.35,178.34,0.06]
[1755619677078,16.87849799,178.35,178.34,0.06]
[1755619677284,28.09567854,178.35,178.34,0.06]
[1755619677871,68.99567854,178.35,178.34,0.06]
[1755619678082,57.77849799,178.35,178.34,0.06]
[1755619678290,68.99567854,178.35,178.34,0.06]
[1755619680370,10.56154537,178.35,178.34,0.06]
[1755619680570,10.0,178.35,178.34,11.97718055]
[1755619680883,10.0,178.35,178.34,0.06]
[1755619680884,28.09567854,178.35,178.34,0.06]
[1755619681801,68.99567854,178.35,178.34,0.06]
[1755619684482,68.28567854,178.35,178.34,0.06]
[1755619684990,68.94567854,178.35,178.34,0.06]
[1755619685513,51.46154537,178.35,178.34,0.06]
[1755619685804,50.9,178.35,178.34,0.75]
[1755619685982,10.0,178.35,178.34,0.75]
[1755619686184,10.0,178.35,178.34,11.96718055]
[1755619687498,10.0,178.37,178.36,26.0]
[1755619687686,10.0,178.37,178.36,37.90718055]
[1755619690017,10.0,178.37,178.36,57.10941281]
[1755619690312,0.03,178.38,178.37,13.59559401]
[1755619690615,0.03,178.38,178.37,25.50277456]
[1755619691135,0.03,178.38,178.37,14.28559401]
[1755619691428,0.03,178.38,178.37,0.69]
[1755619691429,10.03,178.38,178.37,0.69]
[1755619691595,10.03,178.38,178.37,11.21718055]
[1755619692119,10.0,178.35,178.34,0.06]
[1755619692331,10.0,178.35,178.34,11.27718055]
[1755619692635,10.0,178.35,178.34,0.06]
[1755619692790,10.0,178.35,178.34,11.27718055]
[1755619693138,10.0,178.35,178.34,11.96718055]
[1755619693347,10.0,178.35,178.34,11.27718055]
[1755619694202,10.0,178.35,178.34,0.06]
[1755619695223,27.48413317,178.35,178.34,0.06]
[1755619695431,16.26695262,178.35,178.34,0.06]
[1755619696102,10.0,178.35,178.34,0.06]
[1755619696625,16.26695262,178.35,178.34,0.06]
[1755619697321,68.36413317,178.35,178.34,0.06]
[1755619697518,57.14695262,178.35,178.34,0.06]
[1755619697812,57.70849799,178.35,178.34,0.06]
[1755619698527,68.92567854,178.35,178.34,0.06]
[1755619701431,57.70849799,178.35,178.34,0.06]
[1755619701836,57.04849799,178.35,178.34,0.06]
[1755619702436,57.70849799,178.35,178.34,0.06]
[1755619703834,57.04849799,178.35,178.34,0.06]
[1755619704537,10.0,178.35,178.34,11.96718055]
[1755619706540,10.03,178.35,178.34,11.27718055]
[1755619707659,10.03,178.35,178.34,11.96718055]
[1755619708149,10.03,178.35,178.34,11.27718055]
[1755619708641,10.03,178.35,178.34,11.96718055]
[1755619709218,10.03,178.35,178.34,0.75]
[1755619709420,10.03,178.35,178.34,11.96718055]
[1755619710137,10.03,178.35,178.34,11.27718055]
[1755619710308,10.03,178.35,178.34,0.06]
[1755619710709,16.85849799,178.35,178.34,0.06]
[1755619710905,57.73849799,178.35,178.34,0.06]
[1755619711139,68.95567854,178.35,178.34,0.06]
[1755619711322,10.0,178.33,178.32,0.06]
[1755619711520,27.38630737,178.33,178.32,0.06]
[1755619711725,28.04630737,178.33,178.32,0.06]
[1755619712114,10.0,178.32,178.31,0.06]
[1755619712338,62.75718055,178.32,178.31,0.06]
[1755619712520,51.54,178.32,178.31,0.06]
[1755619712714,62.75718055,178.32,178.31,0.06]
[1755619713036,10.0,178.32,178.31,0.06]
[1755619713442,62.81718055,178.32,178.31,0.06]
[1755619713622,68.42507646,178.32,178.31,0.06]
[1755619715522,56.48789591,178.32,178.31,0.06]
[1755619715728,50.88,178.32,178.31,0.06]
[1755619715935,10.0,178.32,178.31,11.96718055]
[1755619716653,15.60789591,178.32,178.31,0.06]
[1755619717035,10.0,178.32,178.31,11.27718055]
[1755619719136,57.20789591,178.32,178.31,0.06]
[1755619720242,56.48789591,178.32,178.31,0.06]
[1755619720952,56.48789591,178.32,178.31,11.27718055]
[1755619721152,56.48789591,178.32,178.31,0.06]
[1755619721350,50.88,178.32,178.31,0.06]
[1755619721554,50.88,178.32,178.31,11.27718055]
[1755619721926,50.88,178.32,178.31,11.96718055]
[1755619722350,50.88,178.32,178.31,11.27718055]
[1755619722652,57.04944128,178.32,178.31,0.06]
[1755619723354,57.76944128,178.32,178.31,0.06]
[1755619724029,57.04944128,178.32,178.31,0.06]
[1755619724251,50.88,178.32,178.31,11.27718055]
[1755619724426,56.48789591,178.32,178.31,11.27718055]
[1755619726243,50.88,178.32,178.31,11.27718055]
[1755619726427,10.0,178.32,178.31,11.96718055]
[1755619726628,10.0,178.32,178.31,25.56277456]
[1755619726994,10.0,178.32,178.31,11.96718055]
[1755619727652,15.60789591,178.32,178.31,11.27718055]
[1755619727859,16.32789591,178.32,178.31,0.06]
[1755619728054,16.88944128,178.32,178.31,0.06]
[1755619729562,28.10662183,178.32,178.31,0.06]
[1755619730538,16.88944128,178.32,178.31,0.06]
[1755619731159,16.16944128,178.32,178.31,0.06]
[1755619731440,16.88944128,178.32,178.31,0.06]
[1755619731635,28.10662183,178.32,178.31,0.06]
[1755619733362,16.88944128,178.32,178.31,0.06]
[1755619733564,28.10662183,178.32,178.31,0.06]
[1755619734461,147.88944128,178.32,178.31,0.06]
[1755619734664,146.60789591,178.32,178.31,0.06]
[1755619735451,15.60789591,178.32,178.31,0.06]
[1755619735651,10.56154537,178.32,178.31,0.06]
[1755619735862,10.56154537,178.32,178.31,11.96718055]
[1755619736058,57.04944128,178.32,178.31,11.27718055]
[1755619736268,57.04944128,178.32,178.31,0.06]
[1755619736642,57.04944128,178.32,178.31,11.27718055]
[1755619736950,57.04944128,178.32,178.31,0.06]
[1755619737135,57.76944128,178.32,178.31,0.06]
[1755619737961,68.98662183,178.32,178.31,0.06]
[1755619741063,68.98662183,178.32,178.29,1e-08]
[1755619741064,10.0,178.3,178.29,1e-08]
[1755619741256,62.63872592,178.3,178.29,1e-08]
[1755619741466,82.56284488,178.3,178.29,1e-08]
[1755619742044,68.96725087,178.3,178.29,1e-08]
[1755619742252,57.03007032,178.3,178.29,1e-08]
[1755619742773,10.0,178.3,178.29,11.90718056]
[1755619744074,15.60852495,178.3,178.29,11.21718056]
[1755619744249,15.60852495,178.3,178.29,1e-08]
[1755619744749,16.27852495,178.3,178.29,1e-08]
[1755619745152,49.49748421,178.3,178.29,1e-08]
[1755619745794,15.60852495,178.3,178.29,1e-08]
[1755619745982,10.0,178.3,178.29,7.87895927]
[1755619747051,57.03007032,178.3,178.29,1e-08]
[1755619750166,57.03007032,178.3,178.29,7.87895927]
[1755619750367,51.42154537,178.3,178.29,7.87895927]
[1755619750680,57.03007032,178.3,178.29,0.66000001]
[1755619750984,50.86,178.3,178.29,7.87895927]
[1755619751192,56.46852495,178.3,178.29,1e-08]
[1755619753276,50.86,178.3,178.29,7.87895927]
[1755619754004,50.86,178.3,178.29,7.21895927]
[1755619754973,50.86,178.3,178.29,1e-08]
[1755619755174,50.86,178.3,178.29,7.21895927]
[1755619755589,56.46852495,178.3,178.29,1e-08]
[1755619755897,50.86,178.3,178.29,7.21895927]
[1755619756684,50.86,178.3,178.29,7.87895927]
[1755619757093,10.0,178.3,178.29,7.87895927]
[1755619757298,10.0,178.3,178.29,0.66000001]
[1755619757496,10.0,178.3,178.29,7.21895927]
[1755619757998,15.60852495,178.3,178.29,1e-08]
[1755619758171,16.17007032,178.3,178.29,1e-08]
[1755619758371,16.84007032,178.3,178.29,1e-08]
[1755619758572,16.17007032,178.3,178.29,1e-08]
[1755619758803,10.0,178.3,178.29,7.87895927]
[1755619759170,10.0,178.3,178.29,7.21895927]
[1755619760012,10.0,178.3,178.29,7.87895927]
[1755619760185,10.0,178.3,178.29,0.66000001]
[1755619760517,10.0,178.3,178.29,7.87895927]
[1755619761817,10.0,178.3,178.29,7.21895927]
[1755619761992,50.84,178.3,178.29,7.21895927]
[1755619762483,56.44852495,178.3,178.29,7.21895927]
[1755619763013,56.44852495,178.3,178.29,7.87895927]
[1755619763014,50.84,178.3,178.29,7.87895927]
[1755619763223,10.0,178.3,178.29,7.87895927]
[1755619763627,10.0,178.31,178.29,13.4877988]
[1755619763920,10.0,178.3,178.29,13.59559402]
[1755619764325,10.0,178.3,178.29,26.00000001]
[1755619764485,10.0,178.3,178.29,26.66000001]
[1755619764699,10.0,178.3,178.29,0.66000001]
[1755619765029,10.0,178.3,178.29,7.21895927]
[1755619765394,10.0,178.3,178.29,7.87895927]
[1755619765599,10.0,178.31,178.29,7.87895927]
[1755619765826,10.03,178.32,178.3,33.87895926]
[1755619766121,0.03,178.32,178.31,7.87895926]
[1755619766527,0.03,178.32,178.31,28.69351253]
[1755619766896,0.03,178.32,178.31,7.87895926]
[1755619767918,0.03,178.32,178.31,13.48716968]
[1755619768307,0.03,178.32,178.31,7.87895926]
[1755619768707,0.03,178.32,178.31,0.66]
[1755619768919,10.03,178.32,178.31,7.87895926]
[1755619770727,0.03,178.32,178.31,13.48716968]
[1755619770903,0.03,178.32,178.31,27.08276369]
[1755619771299,0.03,178.32,178.31,7.87895926]
[1755619771815,10.03,178.32,178.31,7.21895926]
[1755619773443,10.0,178.31,178.3,7.21895926]
[1755619774437,10.0,178.3,178.29,1e-08]
[1755619774734,10.0,178.3,178.29,7.21895927]
[1755619775206,10.0,178.31,178.29,7.88895927]
[1755619775407,10.0,178.31,178.3,33.21895926]
[1755619775608,10.0,178.31,178.3,33.88895926]
[1755619776430,0.03,178.32,178.3,39.49747467]
[1755619776431,10.03,178.32,178.3,39.49747467]
[1755619776617,0.03,178.32,178.31,21.48455327]
[1755619776813,0.03,178.32,178.31,7.88895926]
[1755619777039,0.03,178.32,178.31,7.21895926]
[1755619777040,10.03,178.32,178.31,7.21895926]
[1755619777206,0.03,178.32,178.31,7.88895926]
[1755619777409,0.03,178.34,178.33,39.59559401]
[1755619777726,0.03,178.34,178.33,46.81455327]
[1755619777900,10.03,178.34,178.33,47.48455327]
[1755619778100,10.03,178.34,178.33,33.88895926]
[1755619778340,10.03,178.34,178.33,33.21895926]
[1755619778537,10.03,178.34,178.33,7.21895926]
[1755619779045,10.03,178.34,178.31,26.67]
[1755619779206,10.0,178.32,178.31,26.0]
[1755619779861,10.0,178.33,178.31,26.67]
[1755619780147,10.0,178.33,178.32,26.67]
[1755619780324,10.0,178.33,178.32,33.88895926]
[1755619780523,10.0,178.33,178.32,33.21895926]
[1755619780726,10.0,178.33,178.32,33.88895926]
[1755619782122,10.03,178.34,178.32,33.88895926]
[1755619782318,0.03,178.36,178.35,26.0]
[1755619782523,0.03,178.38,178.35,46.81455327]
[1755619782742,0.03,178.38,178.37,7.21895926]
[1755619782921,0.03,178.39,178.37,7.21895926]
[1755619782922,0.03,178.39,178.38,13.59559401]
[1755619783245,0.03,178.39,178.38,47.48455327]
[1755619783757,10.03,178.41,178.4,13.59559401]
[1755619783932,0.03,178.41,178.4,47.48455327]
[1755619784824,0.03,178.41,178.4,33.21895926]
[1755619785028,10.03,178.41,178.4,33.21895926]
[1755619785228,10.03,178.41,178.4,74.01895926]
[1755619785942,0.03,178.42,178.41,13.59559401]
[1755619786128,0.03,178.42,178.41,21.48455327]
[1755619786634,0.03,178.42,178.41,27.08962025]
[1755619786833,0.03,178.42,178.41,21.48455327]
[1755619787054,10.03,178.42,178.41,21.48455327]
[1755619787257,0.03,178.42,178.41,27.08962025]
[1755619787461,0.03,178.44,178.41,37.11962025]
[1755619787656,0.03,178.46,178.44,13.59559401]
[1755619787955,10.0,178.48,178.47,26.0]
[1755619788126,0.2,178.5,178.48,13.59559401]
[1755619788327,10.03,178.51,178.5,13.59559401]
[1755619788556,10.03,178.51,178.5,61.61455327]
[1755619789068,0.03,178.51,178.5,62.28455327]
[1755619789572,0.03,178.52,178.5,88.28455327]
[1755619789729,0.03,178.52,178.51,20.81455327]
[1755619790149,0.03,178.52,178.51,7.21895926]
[1755619790150,0.75,178.52,178.51,7.21895926]
[1755619790353,0.75,178.52,178.51,11.19599621]
[1755619790564,0.03,178.52,178.51,11.19599621]
[1755619790882,0.03,178.52,178.51,11.86599621]
[1755619791053,0.03,178.52,178.51,52.66599621]
[1755619791356,0.03,178.52,178.51,51.99599621]
[1755619792233,0.75,178.52,178.5,26.0]
[1755619792455,0.75,178.52,178.45,0.67]
[1755619792456,0.03,178.52,178.51,11.19599621]
[1755619792630,5.63161326,178.52,178.48,11.19599621]
[1755619792827,5.63161326,178.52,178.49,11.19599621]
[1755619793140,0.03,178.52,178.51,11.19599621]
[1755619793342,0.75,178.52,178.51,11.19599621]
[1755619793524,0.03,178.52,178.51,11.19599621]
[1755619796474,0.75,178.52,178.48,40.78]
[1755619796670,0.72,178.51,178.5,11.19599621]
[1755619797374,6.32192706,178.51,178.49,11.19599621]
[1755619797577,0.72,178.5,178.49,11.19599621]
[1755619798248,0.03,178.52,178.49,11.19599621]
[1755619798550,0.03,178.52,178.51,11.19599621]
[1755619799077,0.75,178.52,178.5,11.19599621]
[1755619799565,0.72,178.51,178.5,11.19599621]
[1755619799759,0.03,178.52,178.5,11.19599621]
[1755619800172,0.75,178.52,178.5,11.19599621]
[1755619800371,0.03,178.52,178.51,11.19599621]
[1755619800877,0.75,178.52,178.47,40.78]
[1755619801058,0.72,178.51,178.48,11.19599621]
[1755619801255,0.72,178.51,178.47,11.19599621]
[1755619801471,0.72,178.51,178.42,0.67]
[1755619801472,12.47754158,178.51,178.45,11.19599621]
[1755619801774,0.72,178.51,178.47,11.19599621]
[1755619801976,0.59154537,178.52,178.47,11.19599621]
[1755619802195,6.32246884,178.5,178.47,11.19599621]
[1755619803411,0.03,178.52,178.49,11.19599621]
[1755619803606,0.03,178.52,178.51,11.19599621]
[1755619803896,6.29161326,178.52,178.49,11.19599621]
[1755619804194,5.63161326,178.52,178.49,11.19599621]
[1755619804381,0.03,178.52,178.49,11.19599621]
[1755619804587,0.03,178.52,178.51,11.19599621]
[1755619804796,6.29161326,178.52,178.5,11.19599621]
[1755619805012,0.69,178.52,178.5,11.19599621]
[1755619805780,0.03,178.52,178.5,11.19599621]
[1755619805978,0.03,178.52,178.51,11.19599621]
[1755619806291,0.03,178.52,178.51,11.85599621]
[1755619806684,0.03,178.52,178.51,92.21159022]
[1755619806898,0.03,178.53,178.52,24.79159022]
[1755619807073,0.03,178.53,178.52,25.45159022]
[1755619807887,0.03,178.53,178.52,31.05320348]
[1755619808711,0.03,178.56,178.55,39.59559401]
[1755619808877,0.03,178.56,178.55,50.79159022]
[1755619809079,0.03,178.56,178.55,92.21159022]
[1755619810225,0.03,178.58,178.55,97.8122623]
[1755619810398,0.03,178.58,178.57,11.19599621]
[1755619810794,0.03,178.58,178.57,11.85599621]
[1755619812207,0.03,178.58,178.57,17.45604101]
[1755619812416,6.25699034,178.67,178.59,39.59559401]
[1755619812603,0.66,178.67,178.59,91.55159022]
[1755619812790,6.25714101,178.67,178.59,91.55159022]
[1755619812994,6.25714101,178.67,178.59,92.21159022]
[1755619813594,0.66,178.67,178.6,13.59559401]
[1755619813796,0.66,178.67,178.66,11.19599621]
[1755619814033,5.59650497,178.69,178.66,11.19599621]
[1755619814202,0.66,178.69,178.68,11.19599621]
[1755619815241,0.1,178.7,178.66,6.19783526]
[1755619815528,0.1,178.7,178.68,0.66]
[1755619816234,0.1,178.7,178.69,11.85599621]
[1755619817007,0.1,178.7,178.69,25.45159022]
[1755619817836,0.66,178.77,178.75,11.19599621]
[1755619818134,0.66,178.77,178.76,11.19599621]
[1755619819012,6.25377971,178.77,178.7,14.25559401]
[1755619819218,0.66,178.76,178.69,40.74]
[1755619819413,0.66,178.76,178.68,39.59559401]
[1755619819611,11.19599621,178.74,178.68,11.19599621]
[1755619819821,5.59534467,178.72,178.68,11.19599621]
[1755619820021,0.66,178.71,178.7,11.19599621]
[1755619820337,0.66,178.71,178.68,26.0]